[Event "*** SCC Grand Prix: Titled Tuesday Blitz"]
[Site "Chess.com"]
[Date "2020.07.07"]
[Round "4"]
[White "MisiekZielony"]
[Black "Vitor-Moraes"]
[Result "1-0"]
[WhiteElo "2192"]
[BlackElo "1999"]
[TimeControl "180+1"]
[EndTime "10:40:20 PDT"]
[Termination "MisiekZielony won on time"]

1. c4 {[%clk 0:03:00.7]} 1... c6 {[%clk 0:02:59.2]} 2. Nc3 {[%clk 0:03:00.8]}
2... d5 {[%clk 0:02:59.5]} 3. cxd5 {[%clk 0:03:01.1]} 3... cxd5 {[%clk
0:02:58.8]} 4. d4 {[%clk 0:03:01.7]} 4... Nf6 {[%clk 0:02:59]} 5. Nf3 {[%clk
0:03:02.3]} 5... e6 {[%clk 0:02:57.6]} 6. Bg5 {[%clk 0:03:01.4]} 6... Be7 {[%clk
0:02:57.8]} 7. e3 {[%clk 0:03:01.5]} 7... O-O {[%clk 0:02:58.1]} 8. Bd3 {[%clk
0:03:01.5]} 8... Nbd7 {[%clk 0:02:57.6]} 9. O-O {[%clk 0:03:01.4]} 9... b6
{[%clk 0:02:57.7]} 10. Qa4 {[%clk 0:02:55.9]} 10... Bb7 {[%clk 0:02:57.2]} 11.
Ba6 {[%clk 0:02:55.5]} 11... Bxa6 {[%clk 0:02:53.9]} 12. Qxa6 {[%clk 0:02:55.4]}
12... Qc8 {[%clk 0:02:52.5]} 13. Qa4 {[%clk 0:02:55]} 13... a6 {[%clk
0:02:37.6]} 14. Rfc1 {[%clk 0:02:50]} 14... b5 {[%clk 0:02:37.4]} 15. Qb3 {[%clk
0:02:36]} 15... Qb7 {[%clk 0:02:31.5]} 16. Ne1 {[%clk 0:01:15.6]} 16... Bd6
{[%clk 0:02:26.5]} 17. Nd3 {[%clk 0:01:14.1]} 17... h6 {[%clk 0:02:16.6]} 18.
Bh4 {[%clk 0:01:13]} 18... Rac8 {[%clk 0:02:08.5]} 19. Bg3 {[%clk 0:01:02]}
19... Bxg3 {[%clk 0:02:07.3]} 20. hxg3 {[%clk 0:01:02.1]} 20... Ne4 {[%clk
0:01:56.1]} 21. a4 {[%clk 0:00:56.7]} 21... Nxc3 {[%clk 0:01:51]} 22. bxc3
{[%clk 0:00:52.1]} 22... Nb6 {[%clk 0:01:09.3]} 23. axb5 {[%clk 0:00:50.6]}
23... Nc4 {[%clk 0:01:08.8]} 24. Rxa6 {[%clk 0:00:43.1]} 24... Rb8 {[%clk
0:01:08]} 25. Nb4 {[%clk 0:00:19.2]} 25... Qxb5 {[%clk 0:01:06.1]} 26. Qa2
{[%clk 0:00:19.3]} 26... g6 {[%clk 0:00:58.8]} 27. Ra7 {[%clk 0:00:18.6]} 27...
Rb7 {[%clk 0:00:50.1]} 28. Ra6 {[%clk 0:00:18.5]} 28... Rc8 {[%clk 0:00:44.4]}
29. Qe2 {[%clk 0:00:13.1]} 29... Rbc7 {[%clk 0:00:42.2]} 30. e4 {[%clk
0:00:09.1]} 30... Qd7 {[%clk 0:00:31.9]} 31. exd5 {[%clk 0:00:07.9]} 31... exd5
{[%clk 0:00:30.4]} 32. Qf3 {[%clk 0:00:08.2]} 32... Nd2 {[%clk 0:00:18.9]} 33.
Qxd5 {[%clk 0:00:06.4]} 33... Qe7 {[%clk 0:00:13.3]} 34. Nc6 {[%clk 0:00:04.9]}
34... Qf6 {[%clk 0:00:08.8]} 35. Nb4 {[%clk 0:00:04.8]} 35... Nc4 {[%clk
0:00:06.4]} 36. Rxf6 {[%clk 0:00:04.4]} 36... Rf8 {[%clk 0:00:02]} 37. Rxg6+
{[%clk 0:00:04.4]} 37... Kh7 {[%clk 0:00:01.3]} 38. Rc6 {[%clk 0:00:04.8]} 1-0

[Event "*** SCC Grand Prix: Titled Tuesday Blitz"]
[Site "Chess.com"]
[Date "2020.07.07"]
[Round "4"]
[White "elohunter1999"]
[Black "GAusal"]
[Result "0-1"]
[WhiteElo "2439"]
[BlackElo "2077"]
[TimeControl "180+1"]
[EndTime "10:40:23 PDT"]
[Termination "GAusal won by resignation"]

1. e4 {[%clk 0:03:00.9]} 1... e5 {[%clk 0:02:59.6]} 2. Nf3 {[%clk 0:03:00.5]}
2... Nc6 {[%clk 0:02:58.8]} 3. Bb5 {[%clk 0:03:00.5]} 3... a6 {[%clk 0:02:57.7]}
4. Ba4 {[%clk 0:03:00.7]} 4... b5 {[%clk 0:02:55.6]} 5. Bb3 {[%clk 0:03:00.5]}
5... d6 {[%clk 0:02:53.2]} 6. c3 {[%clk 0:02:45.6]} 6... f5 {[%clk 0:02:52.8]}
7. O-O {[%clk 0:02:25.2]} 7... fxe4 {[%clk 0:02:48.7]} 8. Bd5 {[%clk 0:02:25.1]}
8... Bd7 {[%clk 0:02:43.7]} 9. Bxe4 {[%clk 0:02:23.4]} 9... Nf6 {[%clk
0:02:43.6]} 10. Bc2 {[%clk 0:02:23.4]} 10... Be7 {[%clk 0:02:37.4]} 11. d4
{[%clk 0:02:23.5]} 11... exd4 {[%clk 0:02:32.9]} 12. cxd4 {[%clk 0:02:21.9]}
12... O-O {[%clk 0:02:28.9]} 13. Nc3 {[%clk 0:02:16.5]} 13... Bg4 {[%clk
0:02:24.8]} 14. Be3 {[%clk 0:02:00]} 14... d5 {[%clk 0:02:21.5]} 15. h3 {[%clk
0:01:56.8]} 15... Bh5 {[%clk 0:02:17.4]} 16. Bd3 {[%clk 0:01:51.7]} 16... Qd7
{[%clk 0:02:13.3]} 17. Be2 {[%clk 0:01:49.4]} 17... Bd6 {[%clk 0:02:09.2]} 18.
Rc1 {[%clk 0:01:38.9]} 18... Rae8 {[%clk 0:02:08.8]} 19. Nxb5 {[%clk 0:01:33.4]}
19... Bxf3 {[%clk 0:02:04.1]} 20. Nxd6 {[%clk 0:01:11.4]} 20... Bxe2 {[%clk
0:01:59.8]} 21. Qxe2 {[%clk 0:01:09.3]} 21... Qxd6 {[%clk 0:01:59.2]} 22. Qxa6
{[%clk 0:01:09.1]} 22... Nxd4 {[%clk 0:01:48.9]} 23. Qxd6 {[%clk 0:00:59.6]}
23... Ne2+ {[%clk 0:01:43.9]} 24. Kh2 {[%clk 0:00:52.7]} 24... cxd6 {[%clk
0:01:44.8]} 25. Rcd1 {[%clk 0:00:46.6]} 25... d4 {[%clk 0:01:41.7]} 26. Bxd4
{[%clk 0:00:46.7]} 26... Nxd4 {[%clk 0:01:40.8]} 27. Rxd4 {[%clk 0:00:47.6]}
27... d5 {[%clk 0:01:39.2]} 28. Rfd1 {[%clk 0:00:43.2]} 28... Re2 {[%clk
0:01:38]} 29. R1d2 {[%clk 0:00:41.5]} 29... Rfe8 {[%clk 0:01:36.7]} 30. f3
{[%clk 0:00:39.9]} 30... Rxd2 {[%clk 0:01:33.9]} 31. Rxd2 {[%clk 0:00:40.8]}
31... Rd8 {[%clk 0:01:33.6]} 32. Rd4 {[%clk 0:00:40.6]} 32... Kf7 {[%clk
0:01:34.2]} 33. Kg3 {[%clk 0:00:36.4]} 33... Ke6 {[%clk 0:01:35.1]} 34. Kf4
{[%clk 0:00:36.5]} 34... Kd6 {[%clk 0:01:34.4]} 35. Ke3 {[%clk 0:00:36.1]} 35...
Kc5 {[%clk 0:01:32.5]} 36. b4+ {[%clk 0:00:32.5]} 36... Kd6 {[%clk 0:01:30.7]}
37. g4 {[%clk 0:00:29.1]} 37... Ra8 {[%clk 0:01:28]} 38. Rd2 {[%clk 0:00:24.5]}
38... Ra3+ {[%clk 0:01:27.6]} 39. Kf4 {[%clk 0:00:23.5]} 39... Nd7 {[%clk
0:01:21.3]} 40. h4 {[%clk 0:00:21.9]} 40... Nb6 {[%clk 0:01:18.9]} 41. h5 {[%clk
0:00:18]} 41... h6 {[%clk 0:01:17.7]} 42. g5 {[%clk 0:00:17.3]} 42... Ke6 {[%clk
0:01:15.6]} 43. Re2+ {[%clk 0:00:16.6]} 43... Kd6 {[%clk 0:01:15.7]} 44. gxh6
{[%clk 0:00:16.7]} 44... gxh6 {[%clk 0:01:14.5]} 45. Rg2 {[%clk 0:00:17.6]}
45... d4 {[%clk 0:01:13.9]} 46. Rg6+ {[%clk 0:00:17.8]} 46... Kc7 {[%clk
0:01:11.4]} 47. Rxh6 {[%clk 0:00:18.2]} 47... d3 {[%clk 0:01:11.6]} 48. Rh7+
{[%clk 0:00:18.2]} 48... Kc6 {[%clk 0:01:11.1]} 49. Rh6+ {[%clk 0:00:18.6]}
49... Kb5 {[%clk 0:01:10.6]} 50. Rd6 {[%clk 0:00:18.8]} 50... Nc4 {[%clk
0:01:06.6]} 51. Rd8 {[%clk 0:00:18.8]} 51... d2 {[%clk 0:01:06.5]} 52. h6 {[%clk
0:00:19]} 52... Ra7 {[%clk 0:01:02.6]} 53. Rd4 {[%clk 0:00:16.5]} 53... Kxb4
{[%clk 0:01:00.2]} 54. a3+ {[%clk 0:00:16.2]} 54... Kc3 {[%clk 0:01:00.1]} 55.
Rd8 {[%clk 0:00:15.5]} 55... Rh7 {[%clk 0:00:58.8]} 56. Kg5 {[%clk 0:00:16.1]}
56... Rf7 {[%clk 0:00:57.3]} 57. f4 {[%clk 0:00:16.1]} 57... Nxa3 {[%clk
0:00:53]} 58. Rxd2 {[%clk 0:00:13.8]} 58... Kxd2 {[%clk 0:00:52.1]} 59. f5
{[%clk 0:00:14.7]} 59... Nc4 {[%clk 0:00:51.3]} 60. Kg6 {[%clk 0:00:15.2]} 60...
Ne5+ {[%clk 0:00:50.7]} 61. Kg5 {[%clk 0:00:15.1]} 61... Ke3 {[%clk 0:00:50.5]}
62. f6 {[%clk 0:00:15.4]} 62... Ke4 {[%clk 0:00:50.3]} 63. Kh5 {[%clk
0:00:13.7]} 63... Kf5 {[%clk 0:00:50.4]} 64. Kh4 {[%clk 0:00:13.8]} 64... Kxf6
{[%clk 0:00:50.2]} 0-1

[Event "*** SCC Grand Prix: Titled Tuesday Blitz"]
[Site "Chess.com"]
[Date "2020.07.07"]
[Round "4"]
[White "chesslh19"]
[Black "RoelandPruijssers"]
[Result "1-0"]
[WhiteElo "2138"]
[BlackElo "2608"]
[TimeControl "180+1"]
[EndTime "10:40:24 PDT"]
[Termination "chesslh19 won on time"]

1. e4 {[%clk 0:03:00.9]} 1... d5 {[%clk 0:02:54.9]} 2. exd5 {[%clk 0:03:00.5]}
2... Qxd5 {[%clk 0:02:53.5]} 3. Nc3 {[%clk 0:02:59.9]} 3... Qa5 {[%clk
0:02:42.2]} 4. d4 {[%clk 0:02:59.7]} 4... Nf6 {[%clk 0:02:41.4]} 5. Nf3 {[%clk
0:03:00.1]} 5... Bf5 {[%clk 0:02:41]} 6. Bd3 {[%clk 0:02:55.9]} 6... e6 {[%clk
0:02:09.6]} 7. Bxf5 {[%clk 0:02:52.2]} 7... Qxf5 {[%clk 0:01:57]} 8. O-O {[%clk
0:02:52]} 8... Nc6 {[%clk 0:01:53.8]} 9. Be3 {[%clk 0:02:28]} 9... O-O-O {[%clk
0:01:48.6]} 10. Qe2 {[%clk 0:02:26.2]} 10... Rg8 {[%clk 0:01:42.1]} 11. Qb5
{[%clk 0:02:01.4]} 11... Nd5 {[%clk 0:01:27.8]} 12. Nxd5 {[%clk 0:01:52.3]}
12... exd5 {[%clk 0:01:23]} 13. c4 {[%clk 0:01:39.7]} 13... g5 {[%clk 0:00:48]}
14. Rfd1 {[%clk 0:00:48.5]} 14... g4 {[%clk 0:00:43.5]} 15. Ne5 {[%clk
0:00:44.9]} 15... a6 {[%clk 0:00:37.3]} 16. Qb3 {[%clk 0:00:26.1]} 16... dxc4
{[%clk 0:00:34.8]} 17. Qxc4 {[%clk 0:00:21.8]} 17... Nxe5 {[%clk 0:00:31.5]} 18.
dxe5 {[%clk 0:00:22.1]} 18... Be7 {[%clk 0:00:29.8]} 19. Qf4 {[%clk 0:00:18.3]}
19... Qxf4 {[%clk 0:00:26.7]} 20. Bxf4 {[%clk 0:00:19]} 20... Rxd1+ {[%clk
0:00:27]} 21. Rxd1 {[%clk 0:00:18.5]} 21... Rd8 {[%clk 0:00:27.9]} 22. Rxd8+
{[%clk 0:00:18.5]} 22... Kxd8 {[%clk 0:00:28.2]} 23. Kf1 {[%clk 0:00:18.9]}
23... Kd7 {[%clk 0:00:28.7]} 24. Ke2 {[%clk 0:00:19.6]} 24... Ke6 {[%clk
0:00:28.8]} 25. Kd3 {[%clk 0:00:20.3]} 25... b5 {[%clk 0:00:24.6]} 26. Ke4
{[%clk 0:00:18.6]} 26... c5 {[%clk 0:00:23.9]} 27. Bd2 {[%clk 0:00:17.5]} 27...
c4 {[%clk 0:00:19.1]} 28. f4 {[%clk 0:00:17.5]} 28... gxf3 {[%clk 0:00:18.2]}
29. gxf3 {[%clk 0:00:17.6]} 29... f5+ {[%clk 0:00:19.1]} 30. exf6 {[%clk
0:00:15.5]} 30... Bxf6 {[%clk 0:00:20]} 31. Bc3 {[%clk 0:00:12.8]} 31... Be7
{[%clk 0:00:09]} 32. a3 {[%clk 0:00:11.8]} 32... Bd8 {[%clk 0:00:06.3]} 33. f4
{[%clk 0:00:12.1]} 33... a5 {[%clk 0:00:07]} 34. f5+ {[%clk 0:00:11.2]} 34...
Kf7 {[%clk 0:00:07.5]} 35. Kd5 {[%clk 0:00:11.2]} 35... h5 {[%clk 0:00:04.2]}
36. Kc6 {[%clk 0:00:11.2]} 36... b4 {[%clk 0:00:02]} 37. axb4 {[%clk 0:00:11]}
37... axb4 {[%clk 0:00:02.9]} 38. Bxb4 {[%clk 0:00:11.3]} 38... Kf6 {[%clk
0:00:03.5]} 39. Kd5 {[%clk 0:00:10.1]} 39... Bc7 {[%clk 0:00:02.9]} 40. h3
{[%clk 0:00:09.6]} 40... Kxf5 {[%clk 0:00:02.8]} 41. Kxc4 {[%clk 0:00:09.9]}
41... Kf4 {[%clk 0:00:02.8]} 42. Be1 {[%clk 0:00:08.7]} 42... Kf3 {[%clk
0:00:03.2]} 43. Kd5 {[%clk 0:00:07.9]} 1-0

[Event "*** SCC Grand Prix: Titled Tuesday Blitz"]
[Site "Chess.com"]
[Date "2020.07.07"]
[Round "4"]
[White "stefan_95"]
[Black "xberli"]
[Result "1-0"]
[WhiteElo "2588"]
[BlackElo "2300"]
[TimeControl "180+1"]
[EndTime "10:40:25 PDT"]
[Termination "stefan_95 won on time"]

1. d4 {[%clk 0:03:00.9]} 1... Nf6 {[%clk 0:02:58.8]} 2. Nf3 {[%clk 0:03:01.4]}
2... g6 {[%clk 0:02:59.2]} 3. Bf4 {[%clk 0:03:01.1]} 3... Bg7 {[%clk 0:02:59.1]}
4. e3 {[%clk 0:03:02]} 4... O-O {[%clk 0:02:59.3]} 5. Be2 {[%clk 0:03:02.6]}
5... d6 {[%clk 0:02:58.9]} 6. O-O {[%clk 0:03:03.1]} 6... Nc6 {[%clk 0:02:54.7]}
7. h3 {[%clk 0:03:03]} 7... e5 {[%clk 0:02:54.6]} 8. dxe5 {[%clk 0:03:00.6]}
8... Ne4 {[%clk 0:02:49.9]} 9. Nbd2 {[%clk 0:02:04]} 9... dxe5 {[%clk
0:02:37.5]} 10. Bh2 {[%clk 0:01:51]} 10... Nxd2 {[%clk 0:02:34]} 11. Qxd2 {[%clk
0:01:51.2]} 11... Qe7 {[%clk 0:02:18.9]} 12. e4 {[%clk 0:01:37.3]} 12... Be6
{[%clk 0:02:15.4]} 13. c3 {[%clk 0:01:36.9]} 13... Rfd8 {[%clk 0:02:08.4]} 14.
Qc2 {[%clk 0:01:37]} 14... a5 {[%clk 0:02:05.5]} 15. Rfd1 {[%clk 0:01:37]} 15...
Qc5 {[%clk 0:02:02]} 16. Ng5 {[%clk 0:01:31.3]} 16... Nd4 {[%clk 0:01:39.7]} 17.
Nxe6 {[%clk 0:01:23.6]} 17... Nxc2 {[%clk 0:01:20.9]} 18. Nxc5 {[%clk 0:01:23]}
18... Nxa1 {[%clk 0:01:20.6]} 19. Rxa1 {[%clk 0:01:22]} 19... Rd2 {[%clk
0:01:20.4]} 20. Bc4 {[%clk 0:01:17.9]} 20... Rxb2 {[%clk 0:01:16.9]} 21. Rd1
{[%clk 0:01:14.6]} 21... Bf8 {[%clk 0:01:06.4]} 22. Nd7 {[%clk 0:01:11.5]} 22...
Bd6 {[%clk 0:00:55.7]} 23. Bxe5 {[%clk 0:01:08.6]} 23... b5 {[%clk 0:00:43.7]}
24. Bd5 {[%clk 0:01:02.9]} 24... Rd8 {[%clk 0:00:41.6]} 25. Nf6+ {[%clk
0:00:57.7]} 25... Kf8 {[%clk 0:00:41.4]} 26. Bxd6+ {[%clk 0:00:56.8]} 26... Rxd6
{[%clk 0:00:39.6]} 27. e5 {[%clk 0:00:56.3]} 27... Rd8 {[%clk 0:00:38.4]} 28.
Rd4 {[%clk 0:00:45.2]} 28... b4 {[%clk 0:00:29.6]} 29. cxb4 {[%clk 0:00:39.2]}
29... axb4 {[%clk 0:00:30.4]} 30. Rf4 {[%clk 0:00:36.7]} 30... Kg7 {[%clk
0:00:24.9]} 31. Bb3 {[%clk 0:00:32.7]} 31... c5 {[%clk 0:00:20]} 32. Ne4 {[%clk
0:00:28]} 32... Rd7 {[%clk 0:00:16.5]} 33. Nxc5 {[%clk 0:00:26.6]} 33... Re7
{[%clk 0:00:15.1]} 34. Nd3 {[%clk 0:00:22.7]} 34... Rd2 {[%clk 0:00:13.8]} 35.
Nxb4 {[%clk 0:00:21.8]} 35... Rxe5 {[%clk 0:00:14]} 36. Rxf7+ {[%clk 0:00:21.8]}
36... Kh6 {[%clk 0:00:14.2]} 37. Nc6 {[%clk 0:00:18.1]} 37... Re1+ {[%clk
0:00:09.7]} 38. Kh2 {[%clk 0:00:17]} 38... Ree2 {[%clk 0:00:10.6]} 39. Kg3
{[%clk 0:00:10.5]} 39... Rd3+ {[%clk 0:00:07.4]} 40. f3 {[%clk 0:00:10.2]} 40...
Rdd2 {[%clk 0:00:06.3]} 41. Kf4 {[%clk 0:00:07.8]} 41... Rxg2 {[%clk 0:00:04.7]}
42. Ne5 {[%clk 0:00:06.4]} 42... g5+ {[%clk 0:00:01.3]} 43. Kf5 {[%clk
0:00:05.4]} 1-0

[Event "*** SCC Grand Prix: Titled Tuesday Blitz"]
[Site "Chess.com"]
[Date "2020.07.07"]
[Round "4"]
[White "Volodar_Murzin"]
[Black "GoingKronos"]
[Result "1-0"]
[WhiteElo "2673"]
[BlackElo "2485"]
[TimeControl "180+1"]
[EndTime "10:40:28 PDT"]
[Termination "Volodar_Murzin won by checkmate"]

1. e4 {[%clk 0:02:58.5]} 1... e6 {[%clk 0:02:59.7]} 2. d4 {[%clk 0:02:55.5]}
2... d5 {[%clk 0:02:59.6]} 3. Nc3 {[%clk 0:02:56]} 3... Nf6 {[%clk 0:02:59.2]}
4. e5 {[%clk 0:02:47.9]} 4... Nfd7 {[%clk 0:02:58.7]} 5. f4 {[%clk 0:02:38.8]}
5... c5 {[%clk 0:02:58.6]} 6. Nf3 {[%clk 0:02:38]} 6... Nc6 {[%clk 0:02:58.7]}
7. Be3 {[%clk 0:02:37.8]} 7... cxd4 {[%clk 0:02:58.9]} 8. Nxd4 {[%clk
0:02:36.1]} 8... Bc5 {[%clk 0:02:59.4]} 9. Qd2 {[%clk 0:02:33.3]} 9... O-O
{[%clk 0:02:59.2]} 10. Be2 {[%clk 0:01:58]} 10... a6 {[%clk 0:02:52.1]} 11. O-O
{[%clk 0:01:50.5]} 11... Nxd4 {[%clk 0:02:50.6]} 12. Bxd4 {[%clk 0:01:48.5]}
12... b5 {[%clk 0:02:50.9]} 13. Rad1 {[%clk 0:01:39.6]} 13... Qc7 {[%clk
0:02:14.8]} 14. Bf3 {[%clk 0:01:34.5]} 14... Bb7 {[%clk 0:02:08.1]} 15. Ne2
{[%clk 0:01:26.9]} 15... b4 {[%clk 0:02:03.7]} 16. Kh1 {[%clk 0:01:21.1]} 16...
a5 {[%clk 0:02:03.5]} 17. Bxc5 {[%clk 0:01:16.3]} 17... Nxc5 {[%clk 0:02:00.6]}
18. Nd4 {[%clk 0:01:15.9]} 18... Ne4 {[%clk 0:01:44]} 19. Qe1 {[%clk 0:00:54.8]}
19... Qb6 {[%clk 0:01:11.2]} 20. Qh4 {[%clk 0:00:19.5]} 20... f6 {[%clk
0:00:59.4]} 21. Bg4 {[%clk 0:00:12.7]} 21... f5 {[%clk 0:00:51.5]} 22. Bf3
{[%clk 0:00:12]} 22... Rac8 {[%clk 0:00:45.8]} 23. b3 {[%clk 0:00:11.1]} 23...
Ba6 {[%clk 0:00:27.7]} 24. Rfe1 {[%clk 0:00:09.5]} 24... Nc3 {[%clk 0:00:19.7]}
25. Rd2 {[%clk 0:00:09.4]} 25... Nxa2 {[%clk 0:00:19.8]} 26. g4 {[%clk
0:00:08.6]} 26... fxg4 {[%clk 0:00:17.9]} 27. Bxg4 {[%clk 0:00:08.9]} 27... Rxf4
{[%clk 0:00:14.9]} 28. Bxe6+ {[%clk 0:00:07.7]} 28... Qxe6 {[%clk 0:00:13.3]}
29. Qxf4 {[%clk 0:00:08.1]} 29... Qe7 {[%clk 0:00:09.6]} 30. Nf5 {[%clk
0:00:06.4]} 30... Qe6 {[%clk 0:00:07.1]} 31. Rg2 {[%clk 0:00:04.9]} 31... g6
{[%clk 0:00:06.5]} 32. Nh6+ {[%clk 0:00:04.6]} 32... Kg7 {[%clk 0:00:06.9]} 33.
Nf5+ {[%clk 0:00:05]} 33... Kg8 {[%clk 0:00:06.7]} 34. Nd4 {[%clk 0:00:05.6]}
34... Qe7 {[%clk 0:00:06.3]} 35. e6 {[%clk 0:00:05.6]} 35... Rf8 {[%clk
0:00:06.3]} 36. Qe5 {[%clk 0:00:05]} 36... Nc3 {[%clk 0:00:06.5]} 37. Nf5 {[%clk
0:00:05.3]} 37... Qf6 {[%clk 0:00:06.5]} 38. Nh6+ {[%clk 0:00:04.9]} 38... Kg7
{[%clk 0:00:06.3]} 39. e7 {[%clk 0:00:05.4]} 39... Re8 {[%clk 0:00:06.3]} 40.
Nf5+ {[%clk 0:00:04.7]} 40... Kf7 {[%clk 0:00:06.6]} 41. Nd6+ {[%clk 0:00:05.1]}
41... Kg7 {[%clk 0:00:05.8]} 42. Nxe8+ {[%clk 0:00:04.6]} 42... Kh6 {[%clk
0:00:06.2]} 43. Nxf6 {[%clk 0:00:05]} 43... Ne2 {[%clk 0:00:05.6]} 44. Ng4#
{[%clk 0:00:05]} 1-0

[Event "*** SCC Grand Prix: Titled Tuesday Blitz"]
[Site "Chess.com"]
[Date "2020.07.07"]
[Round "4"]
[White "Salem-AR"]
[Black "Mazetovic"]
[Result "0-1"]
[WhiteElo "2923"]
[BlackElo "2760"]
[TimeControl "180+1"]
[EndTime "10:40:29 PDT"]
[Termination "Mazetovic won on time"]

1. d4 {[%clk 0:03:00.9]} 1... Nf6 {[%clk 0:02:59.6]} 2. c4 {[%clk 0:03:01.6]}
2... g6 {[%clk 0:02:59.6]} 3. g3 {[%clk 0:03:02.3]} 3... Bg7 {[%clk 0:02:59.2]}
4. Bg2 {[%clk 0:03:03]} 4... O-O {[%clk 0:02:59.5]} 5. Nc3 {[%clk 0:03:03.1]}
5... d6 {[%clk 0:02:57.5]} 6. Nf3 {[%clk 0:03:03.7]} 6... c6 {[%clk 0:02:57.1]}
7. O-O {[%clk 0:03:03.5]} 7... Qa5 {[%clk 0:02:57.4]} 8. e4 {[%clk 0:03:01.5]}
8... e5 {[%clk 0:02:54.9]} 9. h3 {[%clk 0:02:48.3]} 9... Nbd7 {[%clk 0:02:53]}
10. Be3 {[%clk 0:02:46.2]} 10... Qa6 {[%clk 0:02:40.4]} 11. b3 {[%clk
0:02:41.2]} 11... Re8 {[%clk 0:02:33.6]} 12. d5 {[%clk 0:02:32.4]} 12... c5
{[%clk 0:02:24.5]} 13. Ne1 {[%clk 0:02:01.4]} 13... Qa5 {[%clk 0:02:23.3]} 14.
Qd2 {[%clk 0:01:50.3]} 14... a6 {[%clk 0:02:21.5]} 15. a4 {[%clk 0:01:28.6]}
15... h5 {[%clk 0:01:42.9]} 16. Nd3 {[%clk 0:01:25.9]} 16... h4 {[%clk
0:01:42.1]} 17. g4 {[%clk 0:01:11.2]} 17... Nh7 {[%clk 0:01:40.6]} 18. Rac1
{[%clk 0:00:58.4]} 18... Qd8 {[%clk 0:01:40.1]} 19. Kh1 {[%clk 0:00:37.8]} 19...
g5 {[%clk 0:01:36.1]} 20. b4 {[%clk 0:00:31.6]} 20... cxb4 {[%clk 0:01:25.9]}
21. Nxb4 {[%clk 0:00:32.5]} 21... a5 {[%clk 0:01:26.1]} 22. Nd3 {[%clk 0:00:32]}
22... b6 {[%clk 0:01:26.1]} 23. Nb5 {[%clk 0:00:31.4]} 23... Ndf8 {[%clk
0:01:22.7]} 24. Rb1 {[%clk 0:00:25.2]} 24... Ng6 {[%clk 0:01:09.9]} 25. Nxd6
{[%clk 0:00:19.6]} 25... Qxd6 {[%clk 0:01:10]} 26. Rxb6 {[%clk 0:00:19.9]} 26...
Qd8 {[%clk 0:01:10.1]} 27. c5 {[%clk 0:00:19.4]} 27... Ba6 {[%clk 0:01:10.1]}
28. Rfb1 {[%clk 0:00:15.7]} 28... Nf4 {[%clk 0:01:08.1]} 29. Ne1 {[%clk
0:00:14.1]} 29... Nf8 {[%clk 0:01:07]} 30. Rd6 {[%clk 0:00:10.9]} 30... Qe7
{[%clk 0:01:02.9]} 31. Rbb6 {[%clk 0:00:10.6]} 31... Bc8 {[%clk 0:01:01.9]} 32.
Nf3 {[%clk 0:00:07.8]} 32... N8g6 {[%clk 0:01:00.6]} 33. Bf1 {[%clk 0:00:07.5]}
33... Bf8 {[%clk 0:00:59.3]} 34. Qc2 {[%clk 0:00:06.4]} 34... Qa7 {[%clk
0:00:53.4]} 35. Nxg5 {[%clk 0:00:06]} 35... Bxd6 {[%clk 0:00:52.1]} 36. Rxd6
{[%clk 0:00:06]} 36... Qe7 {[%clk 0:00:50.5]} 37. Nf3 {[%clk 0:00:06.2]} 37...
Bd7 {[%clk 0:00:38.7]} 38. Rb6 {[%clk 0:00:06.3]} 38... Rec8 {[%clk 0:00:38.5]}
39. c6 {[%clk 0:00:06.5]} 39... Be8 {[%clk 0:00:37.9]} 40. Bc5 {[%clk
0:00:06.3]} 40... Qf6 {[%clk 0:00:37.1]} 41. Qc3 {[%clk 0:00:06.2]} 41... Bxc6
{[%clk 0:00:29.7]} 42. dxc6 {[%clk 0:00:03.3]} 42... Rxc6 {[%clk 0:00:29.4]} 43.
Rxc6 {[%clk 0:00:03.4]} 43... Qxc6 {[%clk 0:00:29.1]} 44. Qe3 {[%clk 0:00:03.9]}
44... Rc8 {[%clk 0:00:22.7]} 45. Ba3 {[%clk 0:00:04.3]} 45... Qc3 {[%clk
0:00:21.8]} 46. Bb5 {[%clk 0:00:01.6]} 46... Qxe3 {[%clk 0:00:20.4]} 47. fxe3
{[%clk 0:00:02.5]} 47... Rc3 {[%clk 0:00:20.1]} 0-1